bitfinex/quotes_BTCUSD_20230118
["timestamp","ask_amount","ask_price","bid_price","bid_amount"]
[1674064503960,0.67363797,20863.0,20859.0,0.0101665]
[1674064503961,0.50068114,20862.0,20861.0,0.045]
[1674064504266,0.63326017,20862.0,20859.0,0.09707986]
[1674064504524,1.37408238,20862.0,20859.0,0.09707986]
[1674064504781,1.32976141,20862.0,20859.0,0.09707986]
[1674064505049,1.17976141,20862.0,20860.0,0.045]
[1674064505317,1.17976141,20862.0,20859.0,0.0101665]
[1674064505318,0.78570017,20862.0,20859.0,0.0101665]
[1674064505602,1.17976141,20862.0,20859.0,0.0101665]
[1674064506641,1.22676141,20862.0,20859.0,0.0141665]
[1674064506921,1.17976141,20862.0,20859.0,0.0101665]
[1674064507183,1.17976141,20862.0,20859.0,0.0141665]
[1674064507184,0.15,20861.0,20859.0,0.0141665]
[1674064507456,1.758758,20860.0,20859.0,0.0141665]
[1674064507971,1.75465,20860.0,20859.0,0.0101665]
[1674064508229,1.438158,20860.0,20859.0,0.0141665]
[1674064508494,1.438158,20860.0,20859.0,0.0101665]
[1674064509006,1.485158,20860.0,20859.0,0.0141665]
[1674064509274,2.14595415,20860.0,20859.0,0.0141665]
[1674064509551,1.80847815,20860.0,20859.0,0.0141665]
[1674064509834,2.13138615,20860.0,20859.0,0.0141665]
[1674064510095,1.80847815,20860.0,20859.0,0.0141665]
[1674064510640,0.84970615,20860.0,20859.0,0.0141665]
[1674064511175,0.99970615,20860.0,20859.0,0.0141665]
[1674064511467,1.31636315,20860.0,20859.0,0.0141665]
[1674064512217,1.16636315,20860.0,20859.0,0.0141665]
[1674064512481,0.46400291,20859.0,20857.0,0.01461318]
[1674064512755,2.058552,20858.0,20857.0,0.01461318]
[1674064513019,2.32411324,20858.0,20857.0,0.01461318]
[1674064513275,0.341756,20858.0,20857.0,0.01461318]
[1674064513821,1.19548715,20859.0,20857.0,0.01461318]
[1674064513822,0.479416,20859.0,20857.0,0.01461318]
[1674064514064,0.091,20858.0,20857.0,0.01461318]
[1674064514312,0.479416,20859.0,20857.0,0.01461318]
[1674064514560,1.2241698,20860.0,20857.0,0.01461318]
[1674064514561,0.081,20858.0,20857.0,0.01461318]
[1674064514831,1.2241698,20860.0,20857.0,0.01461318]
[1674064515077,0.008,20859.0,20857.0,0.01461318]
[1674064515318,0.479421,20859.0,20857.0,0.01461318]
[1674064515582,0.45295865,20858.0,20857.0,0.01461318]
[1674064515839,0.91319965,20858.0,20857.0,0.01461318]
[1674064516120,0.93209765,20858.0,20857.0,0.01461318]
[1674064516346,0.69434565,20858.0,20857.0,0.01461318]
[1674064516587,0.37195865,20858.0,20857.0,0.01461318]
[1674064516849,0.780906,20868.0,20857.0,0.52023008]
[1674064517114,0.31258616,20864.0,20859.0,0.1276]
[1674064517410,0.31258616,20864.0,20860.0,1.0127379]
[1674064517640,1.649341,20867.0,20860.0,0.9849109]
[1674064517641,0.26295936,20862.0,20860.0,0.9849109]
[1674064517894,0.26295936,20862.0,20860.0,0.479366]
[1674064518142,0.01,20864.0,20861.0,0.0261619]
[1674064518392,0.31245826,20867.0,20863.0,0.1276]
[1674064518702,0.26798016,20865.0,20864.0,0.0261619]
[1674064518899,0.26798016,20865.0,20863.0,0.0261619]
[1674064519155,0.643583,20868.0,20863.0,0.0261619]
[1674064519156,0.34657998,20866.0,20863.0,0.958613]
[1674064519412,0.34657998,20866.0,20863.0,1.2847749]
[1674064519664,0.34657998,20866.0,20863.0,1.258613]
[1674064520163,0.9643,20869.0,20863.0,1.89047659]
[1674064520410,0.082,20866.0,20864.0,0.4765999]
[1674064520655,0.082,20866.0,20865.0,1.36912523]
[1674064521162,0.46378304,20868.0,20865.0,0.88986023]
[1674064521415,0.37485179,20866.0,20863.0,0.479294]
[1674064521672,0.15,20868.0,20864.0,0.479292]
[1674064521934,0.073,20866.0,20865.0,0.002]
[1674064522186,0.073,20866.0,20865.0,0.55484195]
[1674064522469,0.073,20866.0,20865.0,1.01611295]
[1674064522698,0.27840722,20869.0,20865.0,1.64018995]
[1674064522949,0.084,20868.0,20866.0,0.3694919]
[1674064523198,1.01661871,20872.0,20867.0,1.35015347]
[1674064523447,1.01661871,20872.0,20868.0,0.3694869]
[1674064523694,1.01661871,20872.0,20869.0,0.0261619]
[1674064524195,0.00661871,20872.0,20870.0,0.0261619]
[1674064524440,0.00661871,20872.0,20871.0,0.340499]
[1674064524695,0.08461871,20872.0,20870.0,0.479154]
[1674064524948,0.54149981,20872.0,20869.0,0.479162]
[1674064525226,0.3645172,20870.0,20867.0,0.479206]
[1674064525456,0.307404,20869.0,20866.0,0.479235]
[1674064525704,0.19432097,20869.0,20866.0,0.47923]
[1674064525968,0.56850329,20868.0,20863.0,0.87336224]
[1674064526310,0.98728197,20867.0,20863.0,0.55202012]
[1674064526478,0.34432097,20866.0,20863.0,0.55202012]
[1674064526714,0.19432097,20865.0,20860.0,0.93411286]
[1674064526966,0.19432097,20864.0,20860.0,0.54005162]
[1674064527220,0.19432097,20863.0,20860.0,0.54005162]
[1674064527723,0.15,20864.0,20861.0,0.321727]
[1674064527976,1.23112097,20865.0,20862.0,0.11555535]
[1674064528233,1.0368,20865.0,20863.0,0.313128]
[1674064528486,1.0368,20865.0,20862.0,0.54913235]
[1674064529012,1.22212097,20865.0,20860.0,0.779368]
[1674064529237,0.008,20863.0,20861.0,0.779359]
[1674064529479,0.008,20863.0,20861.0,0.3]
[1674064529739,0.08647,20863.0,20862.0,0.325525]
[1674064530072,0.08647,20863.0,20861.0,0.3]
[1674064530257,0.36624484,20864.0,20862.0,0.333039]
[1674064530497,1.0278,20865.0,20863.0,0.40778734]
[1674064530746,1.0278,20865.0,20864.0,0.62786]
[1674064530996,1.0278,20865.0,20864.0,0.6540219]
[1674064531244,0.34953088,20868.0,20864.0,0.62786]
[1674064531500,1.176894,20869.0,20865.0,0.0657309]
[1674064531501,0.9605,20869.0,20865.0,0.0657309]
[1674064531754,0.9605,20869.0,20866.0,0.8130809]
[1674064532007,0.9605,20869.0,20867.0,0.326426]
[1674064532256,0.9605,20869.0,20866.0,0.958477]
[1674064532511,0.28543326,20870.0,20867.0,0.3]
[1674064532775,0.28543326,20870.0,20868.0,0.326769]
[1674064533008,0.28543326,20870.0,20867.0,0.779204]
[1674064533257,0.98071871,20872.0,20868.0,0.958399]
[1674064533509,1.34268525,20872.0,20868.0,0.958399]
[1674064533758,1.34268525,20872.0,20869.0,0.3]
[1674064534046,0.086,20870.0,20869.0,0.479168]
[1674064534274,0.086,20870.0,20868.0,0.607697]
[1674064534275,0.086,20870.0,20868.0,0.479197]
[1674064534783,0.4467895,20870.0,20865.0,0.54084398]
[1674064535039,0.4467895,20870.0,20865.0,0.47927]
[1674064535040,0.48866921,20869.0,20865.0,0.47927]
[1674064535294,0.56566921,20869.0,20864.0,0.53850419]
[1674064535536,0.19432097,20868.0,20864.0,0.53850419]
[1674064535794,0.19432097,20868.0,20864.0,1.01779819]
[1674064536046,0.19432097,20868.0,20865.0,0.33592]
[1674064536398,0.85852924,20869.0,20864.0,1.01777719]
[1674064536399,0.85052924,20869.0,20864.0,1.01777719]
[1674064536578,0.15,20868.0,20864.0,1.12493209]
[1674064536805,0.37134824,20869.0,20865.0,0.3]
[1674064537056,0.008,20868.0,20865.0,1.0656999]
[1674064537313,0.008,20868.0,20866.0,0.6315]
[1674064537567,0.008,20868.0,20867.0,0.989326]
[1674064537814,0.008,20868.0,20867.0,1.76652769]
[1674064538611,0.98071871,20872.0,20867.0,1.82375325]
[1674064538853,0.98071871,20872.0,20868.0,0.7281649]
[1674064539124,0.98071871,20872.0,20869.0,0.99568]
[1674064539372,0.98071871,20872.0,20870.0,0.315904]
[1674064539619,0.00661871,20872.0,20871.0,0.779133]
[1674064539871,0.00661871,20872.0,20871.0,1.2024199]
[1674064540116,0.00661871,20872.0,20871.0,1.099258]
[1674064540907,0.00661871,20872.0,20871.0,1.578391]
[1674064541648,0.09261871,20872.0,20871.0,1.578391]
[1674064543949,0.09261871,20872.0,20871.0,1.099258]
[1674064544277,0.09261871,20872.0,20870.0,0.07220703]
[1674064545281,1.35924694,20872.0,20867.0,0.53640087]
[1674064545556,0.34432097,20871.0,20866.0,0.479228]
[1674064545791,1.47720197,20870.0,20865.0,0.0582987]
[1674064546059,0.19425944,20869.0,20863.0,0.87215992]
[1674064546316,0.19432097,20868.0,20863.0,1.02955514]
[1674064546587,0.19432097,20867.0,20865.0,0.06919352]
[1674064546850,0.19432097,20868.0,20866.0,0.340491]
[1674064547098,0.958424,20868.0,20863.0,0.479298]
[1674064547349,0.51236697,20867.0,20864.0,0.07456934]
[1674064547596,0.958427,20868.0,20864.0,0.07456934]
[1674064548120,1.15274797,20868.0,20864.0,0.07456934]
[1674064548627,0.09,20868.0,20864.0,0.65708177]
[1674064549371,0.83880266,20869.0,20864.0,1.13637577]
[1674064549622,1.03312363,20869.0,20865.0,0.3]
[1674064549861,0.83880266,20869.0,20865.0,0.88249343]
[1674064550361,0.084,20868.0,20865.0,0.88249343]
[1674064550604,0.35960266,20869.0,20865.0,0.77927]
[1674064550861,0.09,20869.0,20866.0,0.323231]
[1674064551117,0.09,20869.0,20867.0,0.339144]
[1674064551359,0.09,20869.0,20868.0,0.330943]
[1674064551609,1.29507769,20871.0,20867.0,1.25843]
[1674064551860,1.29507769,20871.0,20867.0,1.06165343]
[1674064552358,0.091,20869.0,20868.0,0.06940338]
[1674064552615,0.091,20869.0,20868.0,1.32780738]
[1674064552936,0.091,20869.0,20868.0,0.796263]
[1674064553194,1.29491778,20871.0,20867.0,0.479203]
[1674064553445,1.29491778,20871.0,20867.0,0.10322343]
[1674064553446,0.32764612,20869.0,20867.0,0.10322343]
[1674064553736,0.32764612,20869.0,20867.0,0.001]
[1674064554007,1.28601012,20869.0,20864.0,0.59345203]
[1674064554259,1.36801012,20869.0,20868.0,0.001]
[1674064554514,1.28601012,20869.0,20864.0,0.98631595]
[1674064554783,0.19432097,20868.0,20867.0,0.001]
[1674064555035,1.421033,20868.0,20863.0,0.45153137]
[1674064555300,1.421033,20868.0,20864.0,0.009]
[1674064555301,0.90210089,20867.0,20864.0,0.009]
[1674064555603,1.761424,20866.0,20864.0,0.009]
[1674064555884,0.323848,20865.0,20864.0,0.009]
[1674064556427,0.958518,20866.0,20863.0,0.07248972]
[1674064556685,0.958518,20866.0,20863.0,0.008]
[1674064556686,0.479271,20865.0,20863.0,0.008]
[1674064557190,0.479271,20865.0,20862.0,0.41417003]
[1674064557194,0.562271,20865.0,20864.0,0.001]
[1674064557449,0.479271,20865.0,20862.0,0.11417003]
[1674064557703,0.32026,20864.0,20863.0,0.001]
[1674064557960,1.268095,20864.0,20860.0,0.11417003]
[1674064558220,0.58718489,20864.0,20860.0,0.83235607]
[1674064558484,0.58718489,20864.0,20861.0,0.11417003]
[1674064558746,1.62031149,20865.0,20861.0,0.11417003]
[1674064558994,1.62031149,20865.0,20861.0,0.38820349]
[1674064559256,1.62031149,20865.0,20862.0,0.11417003]
[1674064559516,1.31044757,20865.0,20863.0,0.0085]
[1674064559802,1.42107,20866.0,20863.0,0.0085]
[1674064560057,0.082,20865.0,20863.0,0.11172343]
[1674064560313,0.561272,20865.0,20863.0,0.3085]
[1674064560563,0.562272,20865.0,20863.0,0.0085]
[1674064560845,0.479272,20865.0,20863.0,0.0085]
[1674064561394,0.083,20865.0,20863.0,0.12367003]
[1674064561691,0.083,20865.0,20864.0,0.72896404]
[1674064561945,0.083,20865.0,20864.0,2.10923936]
[1674064562443,0.083,20865.0,20864.0,2.59703336]
[1674064562445,0.083,20865.0,20864.0,2.75975258]
[1674064562704,0.0662726,20865.0,20864.0,3.38008123]
[1674064562961,0.39156558,20871.0,20864.0,3.30451795]
[1674064563213,0.00661871,20872.0,20869.0,0.28640601]
[1674064563473,0.00661871,20872.0,20870.0,0.91266143]
[1674064563745,0.08508871,20872.0,20871.0,0.032013]
[1674064564019,0.30285182,20871.0,20870.0,0.0085]
[1674064564537,0.30285182,20871.0,20868.0,0.37261759]
[1674064565021,0.87730029,20872.0,20869.0,0.315653]
[1674064565022,0.39818429,20872.0,20870.0,0.07286949]
[1674064565293,0.00661871,20872.0,20871.0,0.046659]
[1674064565801,0.00661871,20872.0,20871.0,1.525792]
[1674064566046,0.00661871,20872.0,20871.0,0.825792]
[1674064566552,0.00661871,20872.0,20871.0,1.30499369]
[1674064566810,0.00661871,20872.0,20871.0,3.1985327]
[1674064567070,0.00661871,20872.0,20871.0,3.61491151]
[1674064567364,0.00661871,20872.0,20871.0,3.3857867]
[1674064567628,0.00661871,20872.0,20871.0,3.64142556]
[1674064567861,0.00661871,20872.0,20871.0,3.12401606]
[1674064568112,0.00661871,20872.0,20871.0,3.62481606]
[1674064568367,0.00661871,20872.0,20871.0,3.91089528]
[1674064568680,0.00661871,20872.0,20871.0,3.95504527]
[1674064568925,0.00661871,20872.0,20871.0,3.94888471]
[1674064569194,0.00661871,20872.0,20871.0,3.98367452]
[1674064569459,0.00661871,20872.0,20871.0,3.88425991]
[1674064569711,0.00661871,20872.0,20871.0,3.97625991]
[1674064569972,0.00661871,20872.0,20871.0,4.04266944]
[1674064570236,0.00661871,20872.0,20871.0,4.15692874]
[1674064570526,0.00661871,20872.0,20871.0,3.92816638]
[1674064570778,0.00661871,20872.0,20871.0,4.15692874]
[1674064572084,0.00661871,20872.0,20871.0,3.91894305]
[1674064572367,0.00661871,20872.0,20871.0,4.00289528]
[1674064572846,0.00523468,20872.0,20871.0,3.95637606]
[1674064572863,0.00523468,20872.0,20871.0,3.77084726]
[1674064573116,0.00523468,20872.0,20871.0,4.17101341]
[1674064573401,0.00523468,20872.0,20871.0,4.19336605]
[1674064573655,0.00523468,20872.0,20871.0,4.20578604]
[1674064573909,0.00523468,20872.0,20871.0,3.96485555]
[1674064574162,0.00523468,20872.0,20871.0,4.07900565]
[1674064574415,0.00523468,20872.0,20871.0,4.17100565]
[1674064574923,0.37319344,20877.0,20871.0,4.17100565]
[1674064575218,0.54693479,20877.0,20872.0,0.89602912]
[1674064575477,0.54693479,20877.0,20873.0,0.525729]
[1674064575725,0.27193218,20875.0,20871.0,0.05419929]
[1674064575986,0.94529915,20875.0,20871.0,0.62533229]
[1674064576236,0.66349776,20875.0,20871.0,1.48966698]
[1674064576513,0.39156558,20875.0,20873.0,0.085]
[1674064576797,1.40236558,20876.0,20874.0,0.316592]
[1674064577067,1.40236558,20876.0,20873.0,0.479082]
[1674064577068,0.001,20875.0,20873.0,0.479082]
[1674064577331,1.0108,20876.0,20874.0,0.3]
[1674064578397,0.35760477,20878.0,20874.0,0.779063]
[1674064578650,0.35760477,20878.0,20875.0,0.38322045]
[1674064578902,1.31557177,20878.0,20872.0,0.95631169]
[1674064579156,0.31413058,20876.0,20874.0,0.006]
[1674064579436,0.31413058,20876.0,20869.0,0.55368745]
[1674064579437,1.291096,20875.0,20869.0,0.55368745]
[1674064579687,0.958082,20875.0,20874.0,0.006]
[1674064579940,0.958082,20875.0,20869.0,0.55368745]
[1674064580200,0.73588655,20874.0,20872.0,0.031]
[1674064580519,1.4226693,20874.0,20872.0,0.031]
[1674064580774,0.9435863,20874.0,20872.0,0.031]
[1674064581031,0.330127,20873.0,20872.0,0.031]
[1674064581284,0.52444797,20873.0,20872.0,0.031]
[1674064581550,1.61112197,20873.0,20867.0,2.6674]
[1674064581842,0.91224255,20872.0,20869.0,0.085]
[1674064582102,1.914247,20871.0,20865.0,0.17232339]
[1674064582381,0.58588655,20870.0,20867.0,0.07035724]
[1674064582638,0.479133,20871.0,20867.0,0.07635724]
[1674064582889,0.87067758,20872.0,20867.0,0.58244743]
[1674064583174,1.32838304,20872.0,20867.0,0.65220493]
[1674064583450,0.84927104,20872.0,20868.0,0.47720169]
[1674064583717,0.15,20870.0,20867.0,0.5489825]
[1674064583970,1.00940788,20870.0,20865.0,1.5935405]
[1674064584230,1.00940788,20870.0,20864.0,0.8792633]
[1674064584231,0.34432097,20869.0,20864.0,0.5935595]
[1674064584601,0.67353397,20868.0,20867.0,0.006]
[1674064584604,0.67353397,20868.0,20863.0,3.3468819]
[1674064584849,0.58588655,20868.0,20864.0,0.95857]
[1674064585107,1.38156558,20869.0,20865.0,0.06048162]
[1674064585352,0.991,20869.0,20866.0,0.324016]
[1674064585609,0.99,20869.0,20865.0,0.06048162]
[1674064585836,0.001,20868.0,20866.0,0.479248]
[1674064586351,0.001,20868.0,20866.0,0.002]
[1674064586352,0.480205,20868.0,20866.0,0.002]
[1674064586827,0.001,20868.0,20866.0,0.002]
[1674064587066,0.3366501,20868.0,20866.0,0.002]
[1674064587323,0.3356501,20868.0,20865.0,0.83974662]
[1674064587561,0.3356501,20868.0,20866.0,0.032]
[1674064587840,0.3356501,20868.0,20867.0,0.331494]
[1674064588084,0.07847,20868.0,20865.0,0.36048162]
[1674064589116,0.99,20869.0,20866.0,0.47720169]
[1674064589358,0.8079426,20871.0,20866.0,0.47720169]
[1674064589359,0.3288076,20871.0,20867.0,2.10709391]
[1674064589598,0.3288076,20871.0,20868.0,0.051064]
[1674064589845,0.3288076,20871.0,20868.0,0.58242343]
[1674064590097,0.3288076,20871.0,20868.0,0.958402]
[1674064590343,0.3288076,20871.0,20869.0,0.3]
[1674064591066,0.3378076,20871.0,20869.0,0.3]
[1674064591312,0.3288076,20871.0,20869.0,0.3]
[1674064591554,0.009,20871.0,20870.0,0.07168117]
[1674064591794,0.009,20871.0,20870.0,2.83554586]
[1674064592048,0.009,20871.0,20870.0,3.13554586]
[1674064592294,0.39156558,20875.0,20870.0,3.13554586]
[1674064592536,0.80912904,20878.0,20874.0,1.0]
[1674064592537,0.39156558,20877.0,20874.0,1.0]
[1674064592799,0.39832776,20879.0,20875.0,0.73148943]
[1674064593032,0.39832776,20879.0,20876.0,0.13715143]
[1674064593033,0.00676218,20879.0,20876.0,0.13715143]
[1674064593279,0.00676218,20879.0,20877.0,0.15985278]
[1674064593561,0.00676218,20879.0,20878.0,0.312796]
[1674064593802,0.00676218,20879.0,20876.0,0.479018]
[1674064594041,0.00676218,20879.0,20877.0,0.37269016]
[1674064594042,0.01576218,20879.0,20877.0,0.37269016]
[1674064594306,0.01576218,20879.0,20877.0,1.80786285]
[1674064594307,0.00676218,20879.0,20877.0,1.80786285]
[1674064594533,0.00676218,20879.0,20878.0,0.80746269]
[1674064594796,0.00676218,20879.0,20878.0,1.58643569]
[1674064595039,0.00676218,20879.0,20878.0,1.61743569]
[1674064595276,0.00676218,20879.0,20877.0,0.55166716]
[1674064595526,0.00676218,20879.0,20878.0,0.031]
[1674064595766,0.00676218,20879.0,20878.0,0.331]
[1674064596067,0.00676218,20879.0,20877.0,0.07269016]
[1674064596324,0.00676218,20879.0,20878.0,0.031]
[1674064596829,0.08523218,20879.0,20878.0,0.031]
[1674064597074,0.40951567,20879.0,20878.0,0.031]
[1674064597353,0.40951567,20879.0,20876.0,0.479017]
[1674064597571,0.01476218,20879.0,20878.0,0.002]
[1674064598299,0.00668934,20879.0,20877.0,0.3]
[1674064598551,0.00668934,20879.0,20878.0,0.031]
[1674064598792,0.00668934,20879.0,20877.0,0.3]
[1674064599023,0.01468934,20879.0,20878.0,0.002]
[1674064599265,0.01468934,20879.0,20878.0,0.05907384]
[1674064599805,0.01468934,20879.0,20878.0,1.64017484]
[1674064600290,0.00668934,20879.0,20878.0,1.63817484]
[1674064600546,0.01468934,20879.0,20878.0,2.16352612]
[1674064600783,0.00668934,20879.0,20878.0,2.68760269]
[1674064601051,0.00768934,20879.0,20878.0,2.19702395]
[1674064602529,0.00768934,20879.0,20878.0,2.19962491]
[1674064602778,0.00768934,20879.0,20878.0,2.28830269]
[1674064603035,0.00768934,20879.0,20878.0,3.4163516]
[1674064603292,0.00768934,20879.0,20878.0,3.41632253]
[1674064603613,0.00696085,20880.0,20879.0,0.08693531]
[1674064603855,0.00696085,20880.0,20879.0,4.61528113]
[1674064604110,0.00696085,20880.0,20879.0,4.82774202]
[1674064604360,0.00696085,20880.0,20879.0,4.52443236]
[1674064604589,0.00696085,20880.0,20879.0,4.06003248]
[1674064604841,0.00696085,20880.0,20879.0,3.65948864]
[1674064605317,0.00196085,20880.0,20879.0,2.12753634]
[1674064605567,0.19628182,20880.0,20879.0,0.09459531]
[1674064605813,0.00196085,20880.0,20879.0,1.529697]
[1674064606060,0.00196085,20880.0,20879.0,1.58984122]
[1674064606310,0.00196085,20880.0,20879.0,1.93185808]
[1674064606552,0.00196085,20880.0,20879.0,2.725892]
[1674064606790,0.00196085,20880.0,20879.0,3.05232814]
[1674064607034,0.00196085,20880.0,20879.0,3.48499247]
[1674064607035,0.00296085,20880.0,20879.0,3.48499247]
[1674064607329,0.0075653,20885.0,20879.0,3.48499247]
[1674064607330,0.0075653,20885.0,20882.0,0.5008]
[1674064607580,0.0075653,20885.0,20883.0,2.76909969]
[1674064607812,0.0075653,20885.0,20884.0,0.80184169]
[1674064608062,0.0075653,20885.0,20884.0,1.10184169]
[1674064608311,0.0075653,20885.0,20884.0,1.25603669]
[1674064608584,0.0075653,20885.0,20884.0,0.77720169]
[1674064608830,0.37522271,20885.0,20884.0,0.47720169]
[1674064609071,0.37522271,20885.0,20881.0,0.478894]
[1674064609314,0.56954368,20885.0,20882.0,0.07370838]
[1674064609558,0.0075653,20885.0,20883.0,0.47720169]
[1674064609799,0.0075653,20885.0,20882.0,0.07370838]
[1674064610038,0.0860353,20885.0,20884.0,0.032]
[1674064610294,0.0860353,20885.0,20882.0,0.07370838]
[1674064610536,0.28035627,20885.0,20883.0,0.087]
[1674064610781,0.36616669,20885.0,20883.0,0.087]
[1674064611072,0.28769669,20885.0,20884.0,0.032]
[1674064611315,0.28769669,20885.0,20882.0,0.37370838]
[1674064611562,0.28769669,20885.0,20883.0,0.087]
[1674064611802,0.28769669,20885.0,20882.0,0.37370838]
[1674064612045,0.28769669,20885.0,20884.0,0.032]
[1674064612289,0.0075653,20885.0,20884.0,0.032]
[1674064612536,0.0075653,20885.0,20884.0,0.08828382]
[1674064612807,0.0075653,20885.0,20884.0,1.19677182]
[1674064613045,0.0075653,20885.0,20884.0,0.86477182]
[1674064613281,0.0075653,20885.0,20884.0,1.64360682]
[1674064613577,0.0075653,20885.0,20884.0,1.67560682]
[1674064613825,0.0075653,20885.0,20884.0,2.39401367]
[1674064614076,0.0075653,20885.0,20884.0,2.99192699]
[1674064614322,0.0075653,20885.0,20884.0,3.09515042]
[1674064614578,0.00778387,20887.0,20885.0,0.15]
[1674064614839,0.00778387,20887.0,20886.0,2.26605869]
[1674064615092,0.00778387,20887.0,20886.0,3.87412569]
[1674064616064,0.00778387,20887.0,20886.0,3.74672569]
[1674064616309,0.00778387,20887.0,20886.0,3.83872569]
[1674064617538,0.00770522,20887.0,20886.0,4.20661569]
[1674064618851,0.00770522,20887.0,20886.0,3.92902569]
[1674064619078,0.00770522,20887.0,20886.0,4.09286914]
[1674064619316,0.00770522,20887.0,20886.0,4.02102569]
[1674064619802,0.00770522,20887.0,20886.0,4.22102569]
[1674064620052,0.00770522,20887.0,20886.0,4.66191799]
[1674064620289,0.00770522,20887.0,20886.0,4.24440622]
[1674064620523,0.00770522,20887.0,20886.0,4.14892569]
[1674064620769,0.00567778,20887.0,20886.0,4.41499799]
[1674064621002,0.00567778,20887.0,20886.0,4.41489422]
[1674064621275,0.00706165,20888.0,20886.0,6.18639422]
[1674064621517,0.00706165,20888.0,20887.0,2.87405961]
[1674064621763,0.00706165,20888.0,20887.0,3.98159161]
[1674064622014,0.00764004,20889.0,20887.0,3.4360412]
[1674064622290,0.00764004,20889.0,20888.0,1.47723107]
[1674064622544,0.00681927,20890.0,20888.0,2.80955865]
[1674064622785,9.27e-06,20890.0,20889.0,3.70027892]
[1674064623032,0.00706165,20891.0,20889.0,4.97071122]
[1674064623289,0.00697599,20891.0,20890.0,1.30002122]
[1674064623573,0.00697599,20891.0,20890.0,2.42981522]
[1674064624047,0.00697599,20891.0,20890.0,3.04461522]
[1674064624283,0.00706165,20895.0,20891.0,1.02162524]
[1674064624521,0.00706165,20895.0,20893.0,2.96028792]
[1674064624771,0.00706165,20895.0,20893.0,3.83856288]
[1674064625028,0.00706165,20895.0,20894.0,0.15]
[1674064625265,0.00706165,20895.0,20894.0,3.02641955]
[1674064625505,6.5e-07,20895.0,20894.0,3.3362608]
[1674064625765,6.5e-07,20895.0,20894.0,3.27590022]
[1674064626298,0.19432162,20895.0,20894.0,2.9737416]
[1674064626550,6.5e-07,20895.0,20894.0,2.4045493]
[1674064626804,0.00100065,20895.0,20894.0,2.4885493]
[1674064627048,6.5e-07,20895.0,20894.0,1.75601169]
[1674064627298,6.5e-07,20895.0,20894.0,1.81235725]
[1674064627828,6.5e-07,20895.0,20894.0,2.51315725]
[1674064628070,6.5e-07,20895.0,20894.0,3.19383955]
[1674064628312,0.39156558,20899.0,20894.0,3.26599399]
[1674064628313,0.35553964,20899.0,20894.0,3.26599399]
[1674064628580,3.5001,20900.0,20898.0,2.21725169]
[1674064628829,3.5001,20900.0,20899.0,3.51046669]
[1674064629052,3.5001,20900.0,20899.0,3.74199012]
[1674064629292,3.24097273,20900.0,20899.0,4.05498242]
[1674064629539,3.24097273,20900.0,20899.0,3.66545899]
[1674064629791,3.24097273,20900.0,20899.0,3.53715899]
[1674064630041,3.24197273,20900.0,20899.0,3.62115899]
[1674064630533,3.24197273,20900.0,20899.0,3.09366669]
[1674064631012,3.24097273,20900.0,20899.0,3.00966669]
[1674064631262,3.24197273,20900.0,20899.0,3.59312309]
[1674064631509,3.24097273,20900.0,20899.0,3.50912309]
[1674064631759,3.24197273,20900.0,20899.0,3.59312309]
[1674064632257,3.24197273,20900.0,20899.0,3.11463209]
[1674064632504,3.24197273,20900.0,20899.0,2.61383209]
[1674064632757,3.24197273,20900.0,20899.0,0.084]
[1674064633005,3.54611073,20900.0,20899.0,0.084]
[1674064634304,3.54511073,20900.0,20898.0,0.54527471]
[1674064634555,3.24197273,20900.0,20899.0,0.078]
[1674064634794,3.24197273,20900.0,20896.0,0.95575069]
[1674064634795,3.24097273,20900.0,20896.0,0.95575069]
[1674064635265,3.24097273,20900.0,20893.0,0.478628]
[1674064635266,0.51666897,20899.0,20893.0,0.478628]
[1674064635529,0.1285,20896.0,20892.0,0.957271]
[1674064635787,1.99212879,20898.0,20892.0,1.5377341]
[1674064635788,0.19432097,20895.0,20892.0,1.5377341]
[1674064636059,0.19432097,20895.0,20892.0,2.01493579]
[1674064636334,0.38773582,20897.0,20894.0,0.07323349]
[1674064636650,0.38773582,20899.0,20895.0,1.334198]
[1674064636913,0.32461053,20898.0,20895.0,1.10322343]
[1674064637177,0.32461053,20898.0,20894.0,0.55181749]
[1674064637464,0.15,20896.0,20894.0,0.478584]
[1674064637735,0.301521,20895.0,20892.0,0.526636]
[1674064638005,0.304296,20894.0,20891.0,0.95732]
[1674064638262,0.58205679,20895.0,20894.0,0.048]
[1674064638528,1.27906783,20896.0,20894.0,0.957212]
[1674064638844,1.28306783,20896.0,20894.0,0.526606]
[1674064639102,1.27906783,20896.0,20895.0,0.3]
[1674064639628,0.32886783,20896.0,20895.0,0.3]
[1674064639872,0.33286783,20896.0,20895.0,0.3]
[1674064640123,0.004,20896.0,20895.0,0.3]
[1674064640380,0.004,20896.0,20895.0,0.778583]
[1674064640885,0.004,20896.0,20895.0,2.73436769]
[1674064641138,1.39293582,20899.0,20895.0,3.03887269]
[1674064641451,0.004,20896.0,20895.0,2.305166]
[1674064641640,0.004,20896.0,20895.0,2.634913]
[1674064641904,0.08247,20896.0,20895.0,2.586913]
[1674064642155,0.07847,20896.0,20895.0,2.06411469]
[1674064642415,0.07847,20896.0,20895.0,1.305166]
[1674064642681,0.07847,20896.0,20894.0,0.53767361]
[1674064642928,0.08247,20896.0,20894.0,0.53767361]
[1674064643443,0.08247,20896.0,20894.0,0.05907261]
[1674064643701,0.08247,20896.0,20892.0,1.478643]
[1674064643702,0.42679097,20896.0,20892.0,1.478643]
[1674064643981,0.52039797,20895.0,20891.0,0.478652]
[1674064644213,0.52621697,20894.0,20891.0,0.478652]
[1674064644474,0.19432097,20894.0,20890.0,0.54793773]
[1674064644709,0.51331397,20893.0,20890.0,1.02513942]
[1674064644959,0.19432097,20893.0,20892.0,0.048]
[1674064645281,0.99484082,20895.0,20890.0,1.02515842]
[1674064645481,0.004,20894.0,20890.0,1.17638185]
[1674064645736,1.06066979,20894.0,20889.0,1.478717]
[1674064645982,1.06066979,20894.0,20892.0,0.048]
[1674064645983,0.90834603,20893.0,20892.0,0.048]
[1674064646244,1.05434603,20893.0,20887.0,0.00253769]
[1674064646493,0.1285,20890.0,20887.0,0.06513529]
[1674064646750,0.339497,20889.0,20887.0,0.06513529]
[1674064647022,0.305782,20888.0,20887.0,0.06513529]
[1674064647273,0.51623582,20890.0,20887.0,0.00253769]
[1674064647529,0.601029,20889.0,20887.0,0.00253769]
[1674064647779,0.326697,20888.0,20887.0,0.00253769]
[1674064648290,0.480697,20888.0,20887.0,0.00253769]